lending/lending_fUSD_20260209
["ID","MTS","AMOUNT","RATE_DAILY","PERIOD"]
[404917106,1770676857529,4446.81208347,0.00016316,2]
[404917107,1770676861224,300.0,0.00016315,2]
[404917108,1770676862164,151.0,0.00016413,2]
[404917109,1770676862620,151.0,0.00016413,2]
[404917112,1770676873207,4951.19791653,0.00016406,2]
[404917113,1770676873268,2409.50027094,0.00016406,2]
[404917114,1770676890711,986.86101386,0.00016316,2]
[404917115,1770676891461,2752.61619467,0.00016316,2]
[404917116,1770676891624,391.804,0.00016316,2]
[404917117,1770676893463,3240.879,0.00016088,2]
[404917118,1770676913400,218.34952053,0.00016316,2]
[404917119,1770676913482,1784.46422544,0.00016316,2]
[404917120,1770676921893,230.0,0.00016415,2]
[404917121,1770676922588,550.0,0.00016415,2]
[404917122,1770676926237,300.0,0.00016415,2]
[404917123,1770676927463,500.0,0.00016415,2]
[404917124,1770676927536,500.0,0.00016415,2]
[404917125,1770676927607,250.27721832,0.00016415,2]
[404917126,1770676929194,500.0,0.00016415,2]
[404917127,1770676929273,500.0,0.00016415,2]
[404917128,1770676929352,500.0,0.00016415,2]
[404917129,1770676929428,500.0,0.00016415,2]
[404917130,1770676929504,500.0,0.00016415,2]
[404917131,1770676929590,500.0,0.00016415,2]
[404917132,1770676929675,500.0,0.00016415,2]
[404917133,1770676929752,500.0,0.00016415,2]
[404917134,1770676929830,500.0,0.00016415,2]
[404917135,1770676929905,500.0,0.00016415,2]
[404917136,1770676929989,500.0,0.00016415,2]
[404917137,1770676930075,385.26855624,0.00016415,2]
[404917138,1770676930143,114.73144376,0.00016415,2]
[404917139,1770676930217,500.0,0.00016415,2]
[404917140,1770676930291,500.0,0.00016415,2]
[404917141,1770676930366,500.0,0.00016415,2]
[404917142,1770676930446,500.0,0.00016415,2]
[404917143,1770676930526,500.0,0.00016415,2]
[404917144,1770676930606,500.0,0.00016415,2]
[404917145,1770676930679,500.0,0.00016415,2]
[404917146,1770676930759,479.34591264,0.00016415,2]
[404917147,1770676930831,500.0,0.00016415,2]
[404917148,1770676930896,500.0,0.00016415,2]
[404917149,1770676930969,500.0,0.00016415,2]
[404917150,1770676931058,500.0,0.00016415,2]
[404917151,1770676931149,500.0,0.00016415,2]
[404917152,1770676931230,500.0,0.00016415,2]
[404917153,1770676931330,500.0,0.00016415,2]
[404917154,1770676931612,500.0,0.00016415,2]
[404917155,1770676931688,500.0,0.00016415,2]
[404917156,1770676931765,500.0,0.00016415,2]
[404917157,1770676931835,500.0,0.00016415,2]
[404917158,1770676931907,405.9326436,0.00016415,2]
[404917159,1770676931968,94.0673564,0.00016415,2]
[404917160,1770676932041,500.0,0.00016415,2]
[404917161,1770676932111,500.0,0.00016415,2]
[404917162,1770676932189,500.0,0.00016415,2]
[404917163,1770676932260,500.0,0.00016415,2]
[404917164,1770676932339,500.0,0.00016415,2]
[404917165,1770676932413,500.0,0.00016415,2]
[404917166,1770676932491,500.0,0.00016415,2]
[404917167,1770676932562,500.0,0.00016415,2]
[404917168,1770676932635,500.0,0.00016415,2]
[404917169,1770676942309,5405.9426436,0.00016316,2]
[404917170,1770676942369,10000.01,0.00016316,2]
[404917171,1770676942430,10000.01,0.00016316,2]
[404917172,1770676942494,10000.01,0.00016316,2]
[404917173,1770676942554,10000.01,0.00016316,2]
[404917174,1770676942617,10000.01,0.00016316,2]
[404917175,1770676942679,10000.01,0.00016316,2]
[404917176,1770676996101,500.0,0.00015794,2]
[404917177,1770677097588,9500.01,0.00015799,2]
[404917178,1770677097638,1997.81,0.00015799,2]
[404917179,1770677101186,300.0,0.00015798,2]
[404917180,1770677101249,1200.0,0.00015798,2]
[404917181,1770677195961,250.0,0.00015,2]
[404917182,1770677230289,5700.0,0.000156,5]
[404917183,1770677232383,552.2,0.000157,5]
[404917184,1770677232443,10000.01,0.000157,5]
[404917185,1770677232504,947.79,0.000157,5]
[404917186,1770677234474,9052.22,0.000158,5]
[404917187,1770677234543,8247.78,0.000158,5]
[404917188,1770677236574,1752.23,0.000159,5]
[404917189,1770677236634,10000.01,0.000159,5]
[404917190,1770677236694,10000.01,0.000159,5]
[404917191,1770677236753,1347.75,0.000159,5]
[404917192,1770677259311,351.97,0.00015541,2]
[404917193,1770677284108,1427.61032238,0.00016116,2]
[404917194,1770677291810,860.71365666,0.00016116,2]
[404917195,1770677321996,2262.14364477,0.00016116,2]
[404917196,1770677337149,10000.01,0.00016116,2]
[404917197,1770677337198,4758.1545831,0.00016116,2]
[404917198,1770677339548,196.77173084,0.00016116,2]
[404917199,1770677344545,2767.598159,0.00016133,2]
[404917217,1770677353202,7748.4695521,0.00016116,2]
[404917218,1770677370873,344.97681223,0.00016116,2]
[404917219,1770677371232,3471.61,0.00015549,2]
[404917220,1770677400318,1885.11970395,0.00016116,2]
[404917222,1770677421890,573.80910444,0.00016116,2]
[404917225,1770677431490,-286.0,0.00016212,2]
[404917226,1770677431501,-151.0,0.00016212,2]
[404917227,1770677431512,-151.0,0.00016212,2]
[404917228,1770677431522,-151.0,0.00016213,2]
[404917229,1770677431531,-550.0,0.00016214,2]
[404917230,1770677431540,-1200.0,0.00016214,2]
[404917231,1770677431549,-300.0,0.00016214,2]
[404917232,1770677431559,-177.90250676,0.00016214,2]
[404917233,1770677431568,-257.48792396,0.00016214,2]
[404917234,1770677431578,-500.0,0.00016214,2]
[404917235,1770677431587,-150.44801747,0.00016215,2]
[404917236,1770677431596,-6569.67338113,0.00016215,2]
[404917237,1770677431607,-16809.27219528,0.00016215,2]
[404917238,1770677431618,-1678136.12399524,0.00016215,2]
[404917239,1770677431629,-4184.52069757,0.00016215,2]
[404917240,1770677431640,-26353.72035518,0.00016215,2]
[404917241,1770677431657,-391.88,0.00016215,2]
[404917242,1770677431682,-645.79236201,0.00016215,2]
[404917254,1770677437575,-1484.53866646,0.00016215,2]
[404917255,1770677437833,-1765424.47834713,0.00016215,2]
[404917256,1770677437843,-250.0,0.00016216,2]
[404917257,1770677437853,-180.26694885,0.00016216,2]
[404917258,1770677437862,-2604.81446329,0.00016216,2]
[404917259,1770677437872,-89357.7518,0.00016216,2]
[404917260,1770677437882,-2500.0,0.00016216,2]
[404917261,1770677437891,-459373.58169566,0.00016216,2]
[404917262,1770677437904,-1674.97465886,0.00016216,2]
[404917263,1770677437915,-1183.97152561,0.00016216,2]
[404917266,1770677439616,-796.04788305,0.00016216,2]
[404917267,1770677439808,-97774.7598706,0.00016216,2]
[404917268,1770677439833,-6913.50557726,0.00016216,2]
[404917269,1770677439890,-4680.10571241,0.00016216,2]
[404917270,1770677439905,-927603.05307655,0.00016216,2]
[404917271,1770677439918,-250.0,0.00016275,2]
[404917272,1770677439928,-150.0,0.00016289,2]
[404917273,1770677439939,-150.0,0.00016289,2]
[404917274,1770677439951,-14758.16458306,0.00016314,2]
[404917275,1770677439962,-500.0,0.00016315,2]
[404917276,1770677439971,-553.94559675,0.00016315,2]
[404917277,1770677439981,-4124.1474,0.00016316,2]
[404917278,1770677439992,-4943.7178,0.00016316,2]
[404917279,1770677440015,-150.0,0.00016344,2]
[404917280,1770677440038,-200.0,0.00016399,2]
[404917281,1770677440057,-2604.81446322,0.00016403,2]
[404917282,1770677440067,-500.0,0.00016415,2]
[404917283,1770677440080,-500.0,0.00016415,2]
[404917284,1770677440092,-500.0,0.00016415,2]
[404917285,1770677440106,-500.0,0.00016415,2]
[404917286,1770677440118,-500.0,0.00016415,2]
[404917287,1770677440129,-500.0,0.00016415,2]
[404917288,1770677440138,-500.0,0.00016415,2]
[404917289,1770677440148,-500.0,0.00016415,2]
[404917290,1770677440159,-500.0,0.00016415,2]
[404917291,1770677440170,-500.0,0.00016415,2]
[404917292,1770677440181,-500.0,0.00016415,2]
[404917293,1770677440192,-500.0,0.00016415,2]
[404917294,1770677440204,-500.0,0.00016415,2]
[404917295,1770677440216,-500.0,0.00016415,2]
[404917296,1770677440229,-151.0,0.00016416,2]
[404917297,1770677440241,-151.0,0.00016416,2]
[404917298,1770677440251,-151.0,0.00016416,2]
[404917299,1770677440263,-151.0,0.00016416,2]
[404917300,1770677440274,-151.0,0.00016416,2]
[404917301,1770677440285,-151.0,0.00016416,2]
[404917302,1770677440296,-151.0,0.00016416,2]
[404917303,1770677440310,-151.0,0.00016416,2]
[404917304,1770677440320,-151.0,0.00016416,2]
[404917305,1770677440331,-151.0,0.00016416,2]
[404917306,1770677440341,-151.0,0.00016416,2]
[404917307,1770677440351,-151.0,0.00016416,2]
[404917308,1770677440361,-500.0,0.00016416,2]
[404917309,1770677440370,-151.0,0.00016416,2]
[404917310,1770677440379,-500.0,0.00016416,2]
[404917311,1770677440388,-151.0,0.00016416,2]
[404917312,1770677440398,-500.0,0.00016416,2]
[404917313,1770677440408,-151.0,0.00016416,2]
[404917314,1770677440418,-500.0,0.00016416,2]
[404917315,1770677440428,-151.0,0.00016416,2]
[404917316,1770677440438,-500.0,0.00016416,2]
[404917317,1770677440450,-500.0,0.00016416,2]
[404917318,1770677440460,-200.0,0.00016416,2]
[404917319,1770677440470,-151.0,0.00016416,2]
[404917320,1770677440479,-500.0,0.00016416,2]
[404917321,1770677440490,-500.0,0.00016416,2]
[404917322,1770677440499,-151.0,0.00016416,2]
[404917323,1770677440508,-500.0,0.00016416,2]
[404917324,1770677440517,-500.0,0.00016416,2]
[404917325,1770677440527,-151.0,0.00016416,2]
[404917326,1770677440536,-500.0,0.00016416,2]
[404917327,1770677440545,-500.0,0.00016416,2]
[404917328,1770677440554,-151.0,0.00016416,2]
[404917329,1770677440564,-151.0,0.00016416,2]
[404917330,1770677440574,-500.0,0.00016416,2]
[404917331,1770677440583,-500.0,0.00016416,2]
[404917332,1770677440592,-151.0,0.00016416,2]
[404917333,1770677440602,-500.0,0.00016416,2]
[404917334,1770677440613,-500.0,0.00016416,2]
[404917335,1770677440623,-151.0,0.00016416,2]
[404917336,1770677440632,-500.0,0.00016416,2]
[404917337,1770677440642,-500.0,0.00016416,2]
[404917338,1770677440652,-151.0,0.00016416,2]
[404917339,1770677440661,-500.0,0.00016416,2]
[404917340,1770677440671,-151.0,0.00016416,2]
[404917341,1770677440680,-500.0,0.00016416,2]
[404917342,1770677440690,-151.0,0.00016416,2]
[404917343,1770677440699,-500.0,0.00016416,2]
[404917344,1770677440709,-151.0,0.00016416,2]
[404917345,1770677440719,-500.0,0.00016416,2]
[404917346,1770677440728,-151.0,0.00016416,2]
[404917347,1770677440737,-200.0,0.00016416,2]
[404917348,1770677440754,-151.0,0.00016416,2]
[404917349,1770677440763,-151.0,0.00016416,2]
[404917350,1770677440773,-151.0,0.00016416,2]
[404917351,1770677440783,-500.0,0.00016416,2]
[404917352,1770677440792,-500.0,0.00016416,2]
[404917353,1770677440801,-495.52702673,0.00016416,2]
[404917354,1770677440816,-500.0,0.00016416,2]
[404917355,1770677440825,-999.99,0.00016444,2]
[404917356,1770677440834,-4608.89,0.00016444,2]
[404917357,1770677440844,-499.99,0.00016444,2]
[404917358,1770677440854,-9999.99,0.00016444,2]
[404917359,1770677440863,-9999.99,0.00016444,2]
[404917360,1770677440872,-9999.99,0.00016444,2]
[404917361,1770677440884,-1885.11970393,0.00016473,2]
[404917362,1770677440893,-227.87473014,0.00016481,2]
[404917363,1770677440903,-150.99,0.00016492,2]
[404917364,1770677440911,-150.99,0.00016492,2]
[404917365,1770677440921,-9999.99,0.00016492,2]
[404917366,1770677440930,-299.99,0.00016492,4]
[404917367,1770677440939,-14758.16458306,0.00016512,2]
[404917368,1770677440948,-1000.0,0.00016516,2]
[404917369,1770677440957,-8651.8064,0.00016516,2]
[404917370,1770677440967,-2604.81446322,0.0001659,2]
[404917371,1770677440976,-502.70550867,0.00016615,2]
[404917372,1770677440987,-162.81,0.00016615,2]
[404917373,1770677440997,-500.0,0.00016616,2]
[404917374,1770677441006,-397.62,0.00016626,2]
[404917375,1770677441018,-200.0,0.00016666,2]
[404917376,1770677441027,-14758.16458306,0.00016711,2]
[404917377,1770677441036,-2604.81446322,0.00016777,2]
[404917378,1770677441045,-1885.11970393,0.0001683,2]
[404917379,1770677441055,-150.0,0.00016831,2]
[404917380,1770677441065,-162.81,0.00016889,2]
[404917381,1770677441075,-28900.0,0.000169,6]
[404917382,1770677441089,-14758.16458306,0.00016909,2]
[404917383,1770677441098,-200.0,0.00016964,2]
[404917384,1770677441108,-200.0,0.00016964,2]
[404917385,1770677441119,-500.0,0.00016964,2]
[404917386,1770677441128,-2604.81446322,0.00016964,2]
[404917387,1770677441138,-200.0,0.00016983,2]
[404917388,1770677441147,-500.0,0.00017,2]
[404917389,1770677441156,-14758.16458306,0.00017107,2]
[404917390,1770677441165,-900.0,0.00017146,2]
[404917391,1770677441175,-2604.81446322,0.00017152,2]
[404917392,1770677441185,-162.81,0.00017163,2]
[404917393,1770677441196,-1885.11970393,0.00017186,2]
[404917394,1770677441206,-33312.6077,0.00017239,2]
[404917395,1770677441218,-2311.45857641,0.000173,2]
[404917396,1770677441229,-14758.16458306,0.00017305,2]
[404917397,1770677441238,-2604.81446322,0.00017339,2]
[404917398,1770677441249,-572.35,0.000174,2]
[404917399,1770677441258,-14758.16458306,0.00017504,2]
[404917400,1770677441268,-2604.81446322,0.00017526,2]
[404917401,1770677441277,-1885.11970393,0.00017543,2]
[404917402,1770677441288,-339.0,0.00017668,2]
[404917403,1770677441298,-14758.16458306,0.00017702,2]
[404917404,1770677441309,-2604.81446322,0.00017713,2]
[404917405,1770677441320,-420.0,0.00017724,2]
[404917406,1770677441329,-151.0,0.0001779,2]
[404917407,1770677441339,-183841.60285272,0.00017793,2]
[404917408,1770677441439,-498.56809228,0.00017793,2]
[404917409,1770677441451,-421.11578465,0.00017793,2]
[404917410,1770677441467,-329.83371006,0.00017793,2]
[404917411,1770677441479,-704.97,0.00017793,2]
[404917416,1770677444493,-1137.79536712,0.00017793,2]
[404917419,1770677444505,-4915.52203247,0.00017793,2]
[404917420,1770677444514,-13407.4998539,0.00017793,2]
[404917421,1770677444525,-600.0,0.00017833,2]
[404917422,1770677444535,-300.0,0.00017837,2]
[404917423,1770677444546,-250.0,0.00017837,2]
[404917424,1770677444555,-2604.81446322,0.000179,2]
[404917425,1770677444564,-5700.0,0.000179,6]
[404917426,1770677444574,-14758.16458306,0.000179,2]
[404917427,1770677444583,-1885.11970393,0.000179,2]
[404917428,1770677444593,-500.0,0.000179,2]
[404917429,1770677444603,-151.0,0.00017997,2]
[404917430,1770677444612,-151.0,0.00017997,2]
[404917431,1770677444623,-151.0,0.00017997,2]
[404917432,1770677444632,-589814.87936365,0.00018,2]
[404917433,1770677444643,-521.71363247,0.00018,2]
[404917435,1770677445507,-927.34473525,0.00018,2]
[404917436,1770677445519,-10529.45616897,0.00018,2]
[404917453,1770677447981,-523.49586585,0.00018,2]
[404917454,1770677447993,-416.30793719,0.00018,2]
[404917455,1770677448008,-15322.06698341,0.00018,2]
[404917456,1770677448020,-3165.45,0.00018,2]
[404917457,1770677448031,-5568.9999995,0.00018,2]
[404917458,1770677448099,1000.0,0.00016115,2]
[404917459,1770677454519,5000.01,0.00016115,2]
[404917460,1770677454579,9000.01,0.00016115,2]
[404917461,1770677454636,10000.01,0.00016115,2]
[404917462,1770677454692,10000.01,0.00016115,2]
[404917463,1770677454750,10000.01,0.00016115,2]
[404917464,1770677454807,7904.1465,0.00016115,2]
[404917465,1770677460364,2500.0,0.00016115,2]
[404917469,1770677491213,10000.01,0.00016115,2]
[404917470,1770677491274,10000.01,0.00016115,2]
[404917471,1770677491333,10000.01,0.00016115,2]
[404917472,1770677491356,2500.01,0.00016115,2]
[404917474,1770677501172,-227.91227956,0.00016115,2]
[404917475,1770677504175,-5000.01,0.00016115,2]
[404917477,1770677507204,-5000.01,0.00016115,2]
[404917478,1770677510100,-1252.05434098,0.00016115,2]
[404917479,1770677510348,-5000.01,0.00016115,2]
[404917480,1770677513252,-5000.01,0.00016115,2]
[404917481,1770677516167,3125.17295193,0.00016033,2]
[404917482,1770677516424,-5000.01,0.00016115,2]
[404917483,1770677519323,-5000.01,0.00016115,2]
[404917484,1770677520428,1400.0,0.000158,5]
[404917485,1770677522441,-5000.01,0.00016115,2]
[404917486,1770677522519,2800.0,0.000159,5]
[404917487,1770677525419,-5000.01,0.00016115,2]
[404917488,1770677528559,-5000.01,0.00016115,2]
[404917490,1770677531473,-5000.01,0.00016115,2]
[404917491,1770677534594,-500.0,0.00016114,2]
[404917492,1770677534717,-4000.01,0.00016115,2]
[404917493,1770677537548,-5000.01,0.00016115,2]
[404917494,1770677540670,-5000.01,0.00016115,2]
[404917495,1770677543643,-5000.01,0.00016115,2]
[404917496,1770677546717,-5000.01,0.00016115,2]
[404917497,1770677549726,-5000.01,0.00016115,2]
[404917498,1770677552814,-5000.01,0.00016115,2]
[404917499,1770677556043,-500.0,0.00016114,2]
[404917500,1770677556072,-180.24154677,0.00016114,2]
[404917501,1770677556100,-500.0,0.00016114,2]
[404917502,1770677556131,-321.47340959,0.00016114,2]
[404917503,1770677556159,-500.0,0.00016114,2]
[404917504,1770677556188,-496.58008728,0.00016114,2]
[404917505,1770677556316,-3.41991272,0.00016114,2]
[404917506,1770677558897,-500.0,0.00016114,2]
[404917507,1770677559147,-205.14985133,0.00016114,2]
[404917508,1770677559175,-151.36504069,0.00016114,2]
[404917509,1770677559208,-986.38293452,0.00016114,2]
[404917510,1770677559244,-327.8314124,0.00016114,2]
[404917511,1770677559354,-658.55152212,0.00016114,2]
[404917512,1770677561920,-986.38293452,0.00016114,2]
[404917513,1770677561951,-986.38293452,0.00016114,2]
[404917514,1770677561982,-68.0953274,0.00016114,2]
[404917515,1770677562034,-918.28760712,0.00016114,2]
[404917516,1770677567994,-986.38293452,0.00016114,2]
[404917517,1770677568026,-986.38293452,0.00016114,2]
[404917518,1770677568062,-68.0953274,0.00016114,2]
[404917519,1770677568141,-918.28760712,0.00016114,2]
[404917520,1770677571445,2621.51123256,0.00016014,2]
[404917521,1770677573509,-2016.591013,0.00016033,2]
[404917522,1770677580750,5966.827974,0.00016015,2]
[404917523,1770677580802,1377.97127227,0.00016015,2]
[404917524,1770677598599,5000.01,0.00016024,2]
[404917525,1770677598623,1575.45263971,0.00016024,2]
[404917526,1770677603906,1000.0,0.00016015,2]
[404917527,1770677609929,4124.1474,0.00016015,2]
[404917528,1770677614840,500.0,0.00016015,2]
[404917529,1770677615284,500.0,0.00016015,2]
[404917530,1770677615682,500.0,0.00016015,2]
[404917531,1770677616091,500.0,0.00016015,2]
[404917532,1770677616508,2875.8626,0.00016015,2]
[404917533,1770677616563,10000.01,0.00016015,2]
[404917534,1770677616618,10000.01,0.00016015,2]
[404917535,1770677616672,10000.01,0.00016015,2]
[404917536,1770677616726,10000.01,0.00016015,2]
[404917537,1770677616779,10000.01,0.00016015,2]
[404917538,1770677616805,3424.55736029,0.00016015,2]
[404917539,1770677626922,-2378.49876744,0.00016015,2]
[404917540,1770677636576,151.0,0.00014634,2]
[404917545,1770677787771,579.62816592,0.00015915,2]
[404917546,1770677793715,579.6281659,0.00015965,2]
[404917547,1770677895140,400.39121214,0.00015922,2]
[404917548,1770677902430,5000.01,0.00015915,2]
[404917549,1770677902454,156.97867366,0.00015915,2]
[404917550,1770677907104,377.08031865,0.00015915,2]
[404917551,1770677907382,4465.95100769,0.00015926,2]
[404917552,1770677907407,691.03766594,0.00015926,2]
[404917553,1770677912377,4308.97233406,0.00015937,2]
[404917554,1770677912398,848.01633957,0.00015937,2]
[404917555,1770677917391,5156.98867363,0.00015948,2]
[404917556,1770677919023,185.46734917,0.00015915,2]
[404917557,1770677922370,4657.5539772,0.00015959,2]
[404917558,1770677922605,499.43469643,0.00015959,2]
[404917559,1770677927417,3652.558964,0.00015971,2]
[404917560,1770677927440,1504.42970963,0.00015971,2]
[404917561,1770677940251,2601.10018324,0.00015915,2]
[404917563,1770677947990,-203.44244119,0.00015982,2]
[404917564,1770677948092,-46.46376756,0.00015982,2]
[404917565,1770677948116,-4907.08246488,0.00015982,2]
[404917567,1770677958057,829.10711698,0.00015915,2]
[404917568,1770677969232,4170.90288302,0.00015915,2]
[404917569,1770677969258,1373.42547521,0.00015915,2]
[404917570,1770677973969,150.0,0.00015109,2]
[404917571,1770678017037,2311.45857641,0.000159,2]
[404917574,1770678037458,251.3868791,0.00015915,2]
[404917575,1770678049325,185.46734917,0.00015915,2]
[404917576,1770678088260,552.738078,0.00015915,2]
[404917577,1770678089415,175.53364211,0.00015915,2]
[404917578,1770678089438,3520.68526339,0.00015915,2]
[404917579,1770678109104,193.20938864,0.00015901,2]
[404917580,1770678115070,193.20938863,0.00015908,2]
[404917581,1770678121119,193.20938863,0.00015915,2]
[404917582,1770678146925,899.69657071,0.00015915,2]
[404917583,1770678146948,5000.01,0.00015915,2]
[404917584,1770678146971,526.99276975,0.00015915,2]
[404917585,1770678165176,4473.01723025,0.00015073,2]
[404917586,1770678165197,5000.01,0.00015073,2]
[404917587,1770678165218,5000.01,0.00015073,2]
[404917588,1770678165240,5000.01,0.00015073,2]
[404917589,1770678175657,-4350.02842374,0.00015073,2]
[404917590,1770678175762,-10000.01,0.00015073,2]
[404917591,1770678176757,-10000.01,0.00015073,2]
[404917592,1770678176924,-3879.00565399,0.00015073,2]
[404917593,1770678176952,-2241.99869202,0.00015073,2]
[404917594,1770678179499,151.0,0.00014634,2]
[404917595,1770678192130,500.96,0.0001507,2]
[404917596,1770678193300,166.73,0.00012051,2]
[404917597,1770678193500,166.73,0.0001406,2]
[404917598,1770678249106,5150.72,0.00015069,2]
[404917599,1770678338837,-300.0,0.00015735,2]
[404917600,1770678338864,-1200.0,0.00015735,2]
[404917601,1770678340659,760.56127534,0.00015656,2]
[404917602,1770678340684,1969.90943152,0.00015656,2]
[404917603,1770678340709,374.04757467,0.00015656,2]
[404917604,1770678340735,384.53258827,0.00015656,2]
[404917609,1770678421987,2400.0,0.000155,5]
[404917610,1770678440859,1000.0,0.00014876,2]
[404917611,1770678489954,500.0,0.00014876,2]
[404917612,1770678490836,8500.01,0.00015522,2]
[404917613,1770678490861,147.986326,0.00015522,2]
[404917614,1770678581097,5482.45,0.00014861,2]
[404917615,1770678585226,2600.54380829,0.000155,2]
[404917616,1770678585626,187.20958294,0.000155,2]
[404917617,1770678604704,182.98982382,0.000155,2]
[404917619,1770678624458,368.492052,0.000155,2]
[404917622,1770678631735,-461.83995187,0.0001559,2]
[404917623,1770678631745,-151.0,0.00015597,2]
[404917624,1770678631754,-151.0,0.00015597,2]
[404917625,1770678631764,-280.0,0.00015597,2]
[404917626,1770678631775,-250.0,0.00015598,2]
[404917627,1770678631785,-300.0,0.00015599,2]
[404917628,1770678631794,-63.40024761,0.00015599,2]
[404917629,1770678631806,-236.59975239,0.00015599,2]
[404917630,1770678631816,-1117.43588179,0.00015599,2]
[404917631,1770678631827,-82.56411821,0.00015599,2]
[404917632,1770678631837,-300.0,0.00015599,2]
[404917633,1770678631846,-2424.07895351,0.000156,5]
[404917634,1770678631858,-2375.92104649,0.000156,5]
[404917635,1770678631872,-339428.09115176,0.000156,2]
[404917636,1770678631884,-7974.52530321,0.000156,2]
[404917637,1770678631895,-598.56,0.000156,2]
[404917638,1770678631908,-5139.61447808,0.000156,2]
[404917639,1770678631928,-371.65095903,0.000156,2]
[404917640,1770678631939,-1258.9,0.000156,2]
[404917641,1770678631951,-3158.88510004,0.000156,2]
[404917647,1770678637705,-500.0,0.00015599,2]
[404917648,1770678637715,-626.34475361,0.00015599,2]
[404917649,1770678637725,-197.11446411,0.00015599,2]
[404917650,1770678637736,-302.88553589,0.00015599,2]
[404917651,1770678637745,-128.81044742,0.00015599,2]
[404917652,1770678637756,-371.18955258,0.00015599,2]
[404917653,1770678637766,-500.0,0.00015599,2]
[404917654,1770678637776,-128.66104742,0.00015599,2]
[404917655,1770678637787,-93.68323985,0.00015599,2]
[404917656,1770678637797,-500.0,0.00015599,2]
[404917657,1770678637806,-406.82869015,0.00015599,2]
[404917658,1770678637818,-579.67957582,0.00015599,2]
[404917659,1770678637827,-500.0,0.00015599,2]
[404917660,1770678637837,-500.0,0.00015599,2]
[404917661,1770678637848,-500.0,0.00015599,2]
[404917662,1770678637858,-986.50826597,0.00015599,2]
[404917663,1770678637867,-84.56215821,0.00015599,2]
[404917664,1770678637879,-415.43784179,0.00015599,2]
[404917665,1770678637888,-500.0,0.00015599,2]
[404917666,1770678637897,-500.0,0.00015599,2]
[404917667,1770678637909,-986.50826597,0.00015599,2]
[404917668,1770678637919,-467.59924046,0.00015599,2]
[404917669,1770678637928,-500.0,0.00015599,2]
[404917670,1770678637937,-500.0,0.00015599,2]
[404917671,1770678637946,-986.50826597,0.00015599,2]
[404917672,1770678637956,-500.0,0.00015599,2]
[404917673,1770678637965,-500.0,0.00015599,2]
[404917674,1770678637975,-986.50826597,0.00015599,2]
[404917675,1770678637984,-500.0,0.00015599,2]
[404917676,1770678637994,-500.0,0.00015599,2]
[404917677,1770678638003,-986.50826597,0.00015599,2]
[404917678,1770678638013,-371.70053924,0.00015599,2]
[404917679,1770678638022,-986.50826597,0.00015599,2]
[404917680,1770678638032,-512.89199582,0.00015599,2]
[404917681,1770678638041,-986.50826597,0.00015599,2]
[404917682,1770678638051,-986.50826597,0.00015599,2]
[404917683,1770678638061,-986.50826597,0.00015599,2]
[404917684,1770678638070,-986.50826597,0.00015599,2]
[404917685,1770678638080,-986.50826597,0.00015599,2]
[404917686,1770678638090,-986.50826597,0.00015599,2]
[404917688,1770678638100,-986.50826597,0.00015599,2]
[404917690,1770678638109,-986.50826597,0.00015599,2]
[404917691,1770678638119,-986.50826597,0.00015599,2]